[Event "TUR-ch U13-18 Open 2023"]
[Site "Antalya"]
[Date "2023.01.28"]
[Round "10"]
[White "Danaci, Ege"]
[Black "Hatirli, Ugur Can"]
[Result "1-0"]
[ECO "B74"]
[WhiteElo "2088"]
[BlackElo "1989"]
[Annotator "TA"]
[PlyCount "96"]
[EventDate "2023.01.17"]
[EventType "swiss"]
[EventCountry "TUR"]
[SourceTitle "playchess.com"]
[Source "ChessBase"]
[SourceQuality "1"]
[TimeControl "5400+30"]

{[%evp 19,96,17,37,26,66,16,41,32,22,27,64,69,74,-75,93,60,70,75,72,83,135,89,137,112,137,152,198,203,214,140,160,69,71,19,22,22,24,23,25,22,21,20,19,0,26,26,29,27,32,-17,-18,-35,0,0,106,0,16,14,433,131,102,127,345,326,335,325,388,371,391,388,1430,1431,1405,1385,1269,1249,1070,1108,777]} 1. e4 {[%emt 0:01:00]} c5 {[%emt 0:01:00]} 2. Nf3 {[%emt 0:01:30]} Nc6 {[%emt 0:00:30]} 3. d4 {[%emt 0:02:30]} cxd4 {[%emt 0:01:30]} 4. Nxd4 {[%emt 0:00:30]} Nf6 {[%emt 0:00:30]} 5. Nc3 {[%emt 0:04:30]} d6 {[%emt 0:02:30]} 6. Be2 {[%emt 0:12:30]} g6 {[%emt 0:13:30]} 7. O-O {[%emt 0:03:30]} Bg7 {[%emt 0:00:30]} 8. Nb3 {[%emt 0:00:30]} Bd7 {[%emt 0:10:30]} 9. Be3 {[%emt 0:03:30]} O-O {[%emt 0:06:30]} 10. f4 {[%emt 0:03:30]} Qc8 {[%emt 0:07:30]} 11. h3 {[%emt 0:02:30] B74: Sicilian Dragon: Classical System with 9 Nb3.} Ne8 {[%emt 0:08:30] [#]} 12. Nd4 $146 {[%emt 0:16:30]} (12. Qd2 $14) ({Predecessor:} 12. Bf3 Kh8 13. Qe2 e5 14. Rad1 exf4 15. Bxf4 Ne5 16. Nd5 b5 17. c3 h6 18. Nd4 g5 19. Bxe5 dxe5 {0-1 Nguyen,T (1898)-Vu,T (1757) VIE-ch (Women) 2021 (2)}) 12... Nc7 {[%emt 0:05:30]} 13. Nf3 {[%emt 0:15:30] White is slightly better.} Ne6 {[%emt 0:09:30]} 14. f5 {[%emt 0:14:08]} Nc5 {[%emt 0:00:30]} 15. fxg6 {[%emt 0:00:56]} hxg6 {[%emt 0:00:30] [#]} 16. Ng5 {[%emt 0:00:00]} (16. Qe1 $1 $16 {and life is bright.}) 16... Ne5 $2 {[%emt 0:02:30]} (16... Bxc3 $17 {stays on course.} 17. bxc3 Ne5) 17. Qe1 {[%emt 0:01:52] Qh4 is the strong threat.} (17. Nd5 {with more complications.} Qd8 18. Qe1 Ne6 19. Nh7) 17... f6 {[%emt 0:02:30]} 18. Nf3 {[%emt 0:02:44]} Nxf3+ {[%emt 0:03:30]} 19. Bxf3 {[%emt 0:00:01]} Ne6 {[%emt 0:02:30]} (19... Kf7 $142) 20. Nd5 {[%emt 0:01:05]} ({Better is} 20. Qg3) 20... Rf7 {[%emt 0:01:15]} (20... Qe8 $142) 21. c3 {[%emt 0:02:10]} Nf8 {[%emt 0:01:50]} 22. Qg3 {[%emt 0:00:30]} e5 {[%emt 0:01:15]} (22... Bb5 $16) 23. Rad1 {[%emt 0:01:04]} Be6 {[%emt 0:02:07]} 24. Bg4 {[%emt 0:01:27]} Qe8 {[%emt 0:01:56]} 25. Bxe6 {[%emt 0:02:56]} (25. Rd2 $16) 25... Qxe6 $14 {[%emt 0:00:04]} 26. h4 {[%emt 0:00:21] White has more active pieces. The black rooks are badly placed.} (26. Qg4 $16) 26... f5 $11 {[%emt 0:00:45] Strongly threatening ...f4.} 27. Bg5 {[%emt 0:02:27][%cal Oh4h5]} f4 {[%emt 0:01:12]} (27... fxe4 28. Rxf7 Qxf7 29. Qg4 $16) 28. Qd3 {[%emt 0:00:24]} Nh7 {[%emt 0:00:14]} 29. Qc4 {[%emt 0:02:39]} Re8 {[%emt 0:03:53][%cal Ba8e8,Be8e6,Be6f6][%mdl 32]} 30. Rf3 {[%emt 0:00:29]} Kh8 {[%emt 0:01:23]} 31. Ne3 {[%emt 0:01:47]} Qd7 {[%emt 0:01:03]} (31... Bf6 $5 32. Bxf6+ Nxf6 33. Qxe6 Rxe6 $11) 32. Qd5 {[%emt 0:00:12]} Bf8 {[%emt 0:02:50]} 33. Nc4 {[%emt 0:00:12]} Re6 $1 {[%emt 0:01:00]} 34. g3 {[%emt 0:01:10]} (34. Rh3 $14) 34... b5 {[%emt 0:01:04]} 35. Na5 {[%emt 0:00:26]} Ref6 {[%emt 0:02:27][%cal Od7g4]} 36. Kg2 {[%emt 0:00:52]} (36. Bxf6+ Nxf6 $17) 36... Kg7 {[%emt 0:02:46] [#]} 37. c4 {[%emt 0:00:01]} (37. Bxf6+ $6 Nxf6 38. Qc6 Qg4 $11) ({White should try} 37. Rdf1 $1 $16) 37... bxc4 {[%emt 0:01:08]} (37... Nxg5 $2 38. hxg5 Re6 39. cxb5 $18 (39. Qxb5 Qc8 $16)) 38. Nxc4 {[%emt 0:00:30][%cal Ba5c4,Bc4e3,Be3d5][%mdl 32]} fxg3 $2 {[%emt 0:00:30][%mdl 8192]} (38... Nxg5 $2 39. hxg5 Re6 40. gxf4 (40. Rdf1 Re8 $16) 40... Rxf4 41. Nxe5 $18) (38... Qg4 $1 $11) 39. Bxf6+ $2 {[%emt 0:00:30]} (39. Nxe5 $18 {and the rest is easy. And now Rxf6 would win.} dxe5 40. Qxd7 (40. Bxf6+ Nxf6 41. Qxd7 Rxd7 $11) 40... Rxf3 41. Qe6) 39... Nxf6 $16 {[%emt 0:00:30]} 40. Qd3 $36 {[%emt 0:00:30][%cal Oc4e5][%mdl 2048] Hoping for Nxe5! White is really pushing. Really sharp!} (40. Nxd6 $2 Nxd5 41. Rxf7+ Qxf7 42. Nxf7 Ne3+ 43. Kf3 Nxd1 $19) 40... Qc6 $2 {[%emt 0:00:30]} (40... Qb7 $16) 41. Rdf1 $18 {[%emt 0:00:30]} (41. Kxg3 $2 Nxe4+ 42. Kh2 (42. Kg2 $2 Rxf3 {[%mdl 64] Deflection} 43. Qxf3 Qxc4 $19) 42... Rxf3 43. Qxf3 Qxc4 $19) 41... Be7 {[%emt 0:00:30]} 42. Ne3 {[%emt 0:00:30]} (42. Kxg3 Nxe4+ 43. Kh2 Rxf3 44. Rxf3 Bxh4 $11) 42... Qb7 {[%emt 0:00:30]} 43. b3 {[%emt 0:00:30]} ({Weaker is} 43. Kxg3 Nh5+ 44. Kh2 Rf4 $14) (43. Qc4 Qxb2+ 44. Nc2 (44. Kxg3 Nh5+ 45. Kg4 Rxf3 $11) 44... Qb7 $16) 43... Rf8 {[%emt 0:00:26]} 44. Nd5 {[%emt 0:00:56]} ({Not} 44. Kxg3 Nxe4+ 45. Kh2 Rxf3 46. Rxf3 Ng5 $11) 44... Nh5 $2 {[%emt 0:00:30]} (44... Nxd5 45. Rxf8 Nf6) 45. Rxf8 {[%emt 0:00:30][%mdl 64] Remove Defender. White is clearly winning.} Bxf8 {[%emt 0:00:30] Black is weak on the light squares} 46. Qf3 {[%emt 0:00:30]} Nf4+ {[%emt 0:00:30]} 47. Nxf4 {[%emt 0:00:30]} exf4 {[%emt 0:00:30]} 48. Qxf4 {[%emt 0:00:30]} Qe7 {[%emt 0:00:30] An entertaining game by Danaci.   Weighted Error Value: White=0.45/Black=0.45} 1-0

[Event "TUR-ch U13-18 Open 2023"]
[Site "Antalya"]
[Date "2023.01.28"]
[Round "10"]
[White "Topuz, Mirac Melih"]
[Black "Ceyhan, Mert"]
[Result "0-1"]
[ECO "A09"]
[WhiteElo "2071"]
[BlackElo "1733"]
[Annotator "TA"]
[PlyCount "94"]
[EventDate "2023.01.17"]
[EventType "swiss"]
[EventCountry "TUR"]
[SourceTitle "playchess.com"]
[Source "ChessBase"]
[SourceQuality "1"]
[TimeControl "5400+30"]

{[%evp 9,94,-30,-14,-26,-43,-179,-65,-154,-141,-323,-321,-323,-305,-390,-347,-476,-481,-514,-487,-919,-916,-912,-900,-1058,-759,-757,-674,-753,-746,-726,-656,-695,-704,-694,-692,-691,-619,-585,-423,-418,-406,-412,-400,-463,-463,-454,-453,-500,-520,-516,-431,-518,-506,-485,-492,-507,-503,-505,-478,-490,-485,-522,-518,-511,-510,-504,-504,-493,-466,-460,-454,-795,-789,-765,-728,-5170,-1700,-12784,-12784,-29980,-29980,-29981,-29981,-29989,-29990,-29992,-29993]} 1. Nf3 {[%emt 0:02:00]} d5 {[%emt 0:01:00][%cal Bd7d5,Bd5d4][%mdl 32]} 2. c4 {[%emt 0:00:00]} d4 {[%emt 0:00:00]} 3. b4 {[%emt 0:01:00]} g5 {[%emt 0:01:00]} 4. Bb2 {[%emt 0:02:30]} Bg7 {[%emt 0:01:30]} 5. e3 {[%emt 0:03:30]} e5 $1 {[%emt 0:02:30]} 6. exd4 {[%emt 0:04:30] A09: Réti Opening: 1 Nf3 d5 2 c4.} exd4 {[%emt 0:00:30]} 7. Qe2+ {[%emt 0:05:30] [#]} (7. d3 $15) 7... Be6 $146 {[%emt 0:01:30]} (7... Ne7 $19 {[%cal Od4d3] White must now prevent ...d3!} 8. Nxg5 O-O) ({Predecessor:} 7... Ne7 8. d3 O-O 9. Qd2 g4 10. Ng1 Nf5 11. Ne2 Nc6 12. a3 Re8 13. Qc2 b5 14. cxb5 Ne5 15. Nd2 c6 {0-1 Zhang,D (1981)-He,S (2154) Seattle Classic op 2017 (6)}) 8. Qe4 {[%emt 0:00:30]} ({Better is} 8. h3 $15) 8... Nc6 $17 {[%emt 0:02:30] And now ...Qe7 would win.} 9. a3 $2 {[%emt 0:19:30]} (9. b5 $17 Nf6 10. Qe2) 9... g4 $19 {[%emt 0:01:30]} 10. b5 {[%emt 0:10:30]} Nf6 {[%emt 0:00:30][%cal Bg8f6,Bf6h5,Bh5f4][%mdl 32]} 11. Qd3 {[%emt 0:00:30]} Qe7 {[%emt 0:04:30]} 12. Nxd4 {[%emt 0:04:30]} Nxd4 {[%emt 0:02:30]} (12... Bxc4+ 13. Qe3 Nxd4 14. Bxd4 $15 (14. Qxe7+ Kxe7 15. Bxd4 Bxf1 $15)) 13. Bxd4 {[%emt 0:00:30]} O-O-O {[%emt 0:00:30]} (13... Bxc4+ 14. Qe3 Be6 15. Nc3 $15) 14. Be2 {[%emt 0:06:30]} (14. Qe3 $142 Rxd4 15. Qxd4 Bxc4+ 16. Qe3) 14... Nh5 {[%emt 0:02:30]} 15. Bxg7 {[%emt 0:04:30]} Rxd3 {[%emt 0:00:00]} 16. Bxh8 {[%emt 0:01:30]} Rd8 {[%emt 0:02:00]} 17. O-O {[%emt 0:01:30]} Rxh8 {[%emt 0:00:00]} 18. Re1 {[%emt 0:00:00]} Nf4 {[%emt 0:01:00]} 19. Bf1 {[%emt 0:00:00]} Qd7 {[%emt 0:00:30]} 20. Nc3 {[%emt 0:00:30]} Qxd2 {[%emt 0:02:30]} 21. Ne4 {[%emt 0:00:30]} Qc2 {[%emt 0:00:30]} 22. c5 {[%emt 0:01:30]} Bf5 {[%emt 0:01:30]} 23. Rac1 {[%emt 0:01:30]} Qxc1 {[%emt 0:01:30]} 24. Rxc1 {[%emt 0:00:30]} Bxe4 {[%emt 0:00:30]} 25. Rc4 {[%emt 0:00:00]} Re8 {[%emt 0:00:00]} 26. f3 {[%emt 0:00:00]} gxf3 {[%emt 0:00:00]} 27. gxf3 {[%emt 0:00:30] [#]} Bd3 {[%emt 0:00:30]} 28. Rxf4 {[%emt 0:00:00]} (28. Bxd3 Nxd3) 28... Re1 $1 {[%emt 0:00:30][%csl LRb5,LRf1]} 29. Rxf7 {[%emt 0:00:00][%cal Oc5c6]} Rxf1+ {[%emt 0:01:30][%mdl 4096] Endgame KRB-KR} 30. Kg2 {[%emt 0:00:30]} Rc1 {[%emt 0:00:00]} 31. Rf8+ {[%emt 0:01:30]} Kd7 {[%emt 0:00:00]} 32. Rf7+ {[%emt 0:00:30]} Kd8 {[%emt 0:00:00]} 33. b6 {[%emt 0:03:30]} axb6 {[%emt 0:00:00]} 34. cxb6 {[%emt 0:00:30]} cxb6 {[%emt 0:00:30]} 35. Rxb7 {[%emt 0:00:30]} b5 {[%emt 0:00:30]} 36. Kf2 {[%emt 0:01:30]} Ra1 {[%emt 0:00:30]} 37. Ke3 {[%emt 0:00:30]} Rxa3 {[%emt 0:00:30]} 38. Kd4 {[%emt 0:00:30]} Rb3 {[%emt 0:01:30]} 39. f4 {[%emt 0:00:00]} Bg6 {[%emt 0:00:30]} 40. Ke5 {[%emt 0:00:00]} (40. Kc5 $142) 40... Kc8 {[%emt 0:00:30]} 41. Rg7 {[%emt 0:02:30]} Re3+ {[%emt 0:00:00]} 42. Kf6 {[%emt 0:00:30]} Re4 {[%emt 0:00:00]} 43. Kg5 {[%emt 0:00:30]} b4 {[%emt 0:00:30] ( -> ...b3)} 44. Ra7 {[%emt 0:01:30]} b3 {[%emt 0:00:30] Black mates.} 45. Ra3 {[%emt 0:00:30]} Rb4 {[%emt 0:00:00]} 46. f5 {[%emt 0:00:30]} b2 {[%emt 0:00:00]} 47. fxg6 {[%emt 0:00:30]} b1=Q {[%emt 0:00:00] White got outplayed after the opening.   Weighted Error Value: White=0.71/Black=0.44} ({Not} 47... b1=B 48. Ra8+ Kd7 49. gxh7 (49. g7 h6+ {[%mdl 64] Decoy} 50. Kxh6 Rb6+ 51. Kh5 Bg6+ 52. Kh4 Bh7 $11) 49... Rb5+ 50. Kf6 Bxh7 51. Ra7+ Ke8 52. Rxh7 $11) 0-1

[Event "TUR-ch U13-18 Open 2023"]
[Site "Antalya"]
[Date "2023.01.28"]
[Round "10"]
[White "Kavri, Yusuf Eren"]
[Black "Kutdemir, Mehmet"]
[Result "1-0"]
[ECO "A86"]
[WhiteElo "2050"]
[BlackElo "1369"]
[Annotator "TA"]
[PlyCount "67"]
[EventDate "2023.01.17"]
[EventType "swiss"]
[EventCountry "TUR"]
[SourceTitle "playchess.com"]
[Source "ChessBase"]
[SourceQuality "1"]
[TimeControl "5400+30"]

{[%evp 16,67,27,26,23,30,45,20,29,14,45,10,16,0,20,11,14,-7,129,143,186,163,395,384,380,384,408,351,370,260,300,348,330,262,347,320,335,320,385,358,356,370,365,351,366,369,854,858,847,814,2224,2122,2034,2041]} 1. d4 {[%emt 0:04:00]} f5 {[%emt 0:01:00]} 2. c4 {[%emt 0:00:30]} Nf6 {[%emt 0:00:00]} 3. Nc3 {[%emt 0:00:30]} g6 {[%emt 0:00:00]} 4. g3 {[%emt 0:00:30]} Bg7 {[%emt 0:00:30]} 5. Bg2 {[%emt 0:00:30]} d6 {[%emt 0:00:00]} 6. Nh3 {[%emt 0:00:00]} O-O {[%emt 0:00:00]} 7. d5 {[%emt 0:00:00]} Na6 {[%emt 0:03:30]} 8. O-O {[%emt 0:05:30] The old main line.} Nc5 {[%emt 0:00:30]} 9. Qc2 $1 {[%emt 0:00:30]} e5 {[%emt 0:02:30][%cal Of5f4] A86: Dutch Defence: Leningrad System: Unusual lines and 5 Nh3.} 10. dxe6 {[%emt 0:00:00]} Nxe6 {[%emt 0:02:30]} 11. Ng5 {[%emt 0:04:00][%cal Bh3g5,Bg5f3,Bf3d4,Bd4c6,Bc6a7,Ba7b5][%mdl 32]} c6 {[%emt 0:07:30] [#] The position is equal.} 12. Rd1 $146 {[%emt 0:02:30]} ({Predecessor:} 12. Nxe6 Bxe6 13. b3 Qe7 14. e3 Rad8 15. Bb2 g5 16. Rab1 Qf7 17. Ne2 d5 18. Nd4 dxc4 19. Nxe6 Qxe6 20. bxc4 {½-½ Holzapfel,D (2304)-Stanke,J (2308) BL2-Nord 0405 2004 (5.5)}) 12... Ne8 {[%emt 0:02:30]} 13. h4 {[%emt 0:15:30]} Qe7 {[%emt 0:04:30]} 14. Rb1 {[%emt 0:05:30]} h6 {[%emt 0:11:30]} 15. Nf3 {[%emt 0:10:30]} Nc5 {[%emt 0:07:30]} 16. Nd4 {[%emt 0:06:30]} Be6 {[%emt 0:03:30]} (16... a5 $11 {keeps the balance.}) 17. b4 $16 {[%emt 0:03:30] Black is now going downhill.} Nd7 {[%emt 0:00:30]} 18. b5 {[%emt 0:04:30]} Rc8 {[%emt 0:04:30]} (18... Bxd4 {keeps fighting.} 19. Rxd4 Qg7) 19. bxc6 $18 {[%emt 0:01:30]} bxc6 {[%emt 0:04:30]} 20. Nxc6 {[%emt 0:00:30]} Qf7 {[%emt 0:01:30]} 21. Rb7 {[%emt 0:02:30] [#] Nb5 is the strong threat.} (21. Nxa7 Rxc4 22. Nab5 Nc5 $16) 21... Bxc4 {[%emt 0:03:30]} 22. Nxa7 {[%emt 0:02:30]} (22. Rxa7 Kh7 23. Bd5 Bxd5 24. Nxd5 Qe6 $18) 22... Rb8 {[%emt 0:06:30]} 23. Rxb8 {[%emt 0:03:30]} (23. Bd5 Bxd5 24. Rxb8 Be4 25. Nxe4 fxe4 $17) 23... Nxb8 {[%emt 0:00:30]} 24. Nab5 {[%emt 0:00:30]} Qd7 {[%emt 0:03:30]} 25. a4 {[%emt 0:01:30][%cal Ba2a4,Ba4a5][%mdl 32]} Kh7 {[%emt 0:03:30]} 26. Bf4 {[%emt 0:02:30]} Qe6 {[%emt 0:01:30]} 27. Bd5 {[%emt 0:03:30]} ({Weaker is} 27. Nxd6 Bb3 28. Qd3 Bxd1 $11) 27... Bxd5 {[%emt 0:00:30]} 28. Nxd5 {[%emt 0:00:30]} Rf7 {[%emt 0:01:30]} 29. a5 {[%emt 0:03:38]} Rb7 {[%emt 0:00:30]} 30. Qc4 {[%emt 0:03:54]} Na6 $2 {[%emt 0:01:30] [#]} (30... Qe4 31. Qxe4 (31. Nxd6 Nxd6 32. Qd3 Qxd3 $15) 31... fxe4) 31. Nxd6 $1 {[%emt 0:05:15][%mdl 576] Discovered Attack. White is clearly winning.} Nxd6 {[%emt 0:09:18]} 32. Qxa6 {[%emt 0:00:13]} Be5 {[%emt 0:00:55]} 33. Bxe5 {[%emt 0:01:52][%mdl 64] Remove Defender} Qxe5 {[%emt 0:00:06]} 34. Nf4 {[%emt 0:01:08] Weighted Error Value: White=0.21 (precise) /Black=0.40} 1-0

[Event "TUR-ch U13-18 Open 2023"]
[Site "Antalya"]
[Date "2023.01.28"]
[Round "10"]
[White "Temizer, Umut"]
[Black "Kandaz, Berat Efe"]
[Result "1-0"]
[ECO "B53"]
[WhiteElo "1989"]
[BlackElo "1650"]
[Annotator "TA"]
[PlyCount "77"]
[EventDate "2023.01.17"]
[EventType "swiss"]
[EventCountry "TUR"]
[SourceTitle "playchess.com"]
[Source "ChessBase"]
[SourceQuality "1"]
[TimeControl "5400+30"]

{[%evp 17,77,0,0,-14,0,0,65,-22,0,0,0,-64,-63,-54,-47,-46,0,0,0,0,0,0,0,0,0,0,32,30,39,35,52,47,30,0,0,0,0,0,0,0,0,0,0,0,0,0,0,0,0,0,0,0,0,0,0,0,12832,6612,29996,29997,29997,29998]} 1. e4 {[%emt 0:05:00]} c5 {[%emt 0:01:00]} 2. Nf3 {[%emt 0:00:30]} d6 {[%emt 0:00:30]} 3. Bb5+ {[%emt 0:00:30]} Nd7 {[%emt 0:00:00]} 4. d4 {[%emt 0:00:30]} cxd4 {[%emt 0:00:00]} 5. Qxd4 {[%emt 0:00:30]} a6 {[%emt 0:00:30]} 6. Bxd7+ {[%emt 0:02:30]} Bxd7 {[%emt 0:00:00]} 7. O-O {[%emt 0:01:30]} Nf6 {[%emt 0:00:00]} 8. Bg5 {[%emt 0:01:30]} e6 {[%emt 0:00:30] 8...e6 scores better than 8...h6.} 9. Nc3 {[%emt 0:01:30]} Bc6 {[%emt 0:01:30]} 10. Rad1 {[%emt 0:02:30] B53: Sicilian: 2...d6: Lines with Qxd4.} Be7 {[%emt 0:01:30]} 11. Qe3 {[%emt 0:06:30] [#]} h6 $146 {[%emt 0:11:30]} (11... Qc7 $11) ({Predecessor:} 11... Qa5 12. e5 Ng4 13. Qf4 Bxg5 14. Qxg4 Bxf3 15. Qxf3 Qxe5 16. Rfe1 Qa5 17. Rd5 Qb4 18. Rxg5 {1-0 Terry,R (2504)-Solon,N (2306) Titled Tuesday intern op 03rd Aug blitz 2021 (2)}) 12. Bh4 {[%emt 0:10:30] White is more active.} (12. Bxf6 $14 gxf6 13. h3) 12... Ng4 {[%emt 0:10:30]} 13. Qf4 {[%emt 0:00:30] [#] Threatens to win with Bxe7.} Bxh4 {[%emt 0:02:30]} 14. Qxg4 {[%emt 0:00:00]} (14. Rxd6 $1 $11 Qb8 15. Nxh4) 14... Bf6 $15 {[%emt 0:00:30]} 15. Rfe1 {[%emt 0:14:00] aiming for e5.} Bxc3 {[%emt 0:02:30]} 16. bxc3 {[%emt 0:03:30]} Qf6 {[%emt 0:01:30]} (16... O-O $15) 17. Rxd6 $11 {[%emt 0:04:30]} Qxc3 {[%emt 0:03:30]} 18. Rd3 $36 {[%emt 0:01:30][%mdl 2048] White has good play.} Qf6 {[%emt 0:00:30]} 19. e5 {[%emt 0:00:00]} Bxf3 {[%emt 0:03:30]} 20. Rxf3 {[%emt 0:04:00]} Qg5 {[%emt 0:02:30]} 21. Qe4 {[%emt 0:09:30]} Qe7 {[%emt 0:01:30]} 22. Rb1 {[%emt 0:00:30]} Ra7 {[%emt 0:13:30]} 23. Rg3 {[%emt 0:01:30]} g6 {[%emt 0:09:30]} 24. Rc3 {[%emt 0:04:30]} Kf8 {[%emt 0:07:30][%cal Be8f8,Bf8g7,Bg7h8][%mdl 32]} 25. Rc8+ {[%emt 0:02:30]} Kg7 {[%emt 0:00:30]} 26. Rxh8 {[%emt 0:00:30]} Kxh8 {[%emt 0:00:30][%mdl 4096] Endgame KQR-KQR} 27. Qe3 {[%emt 0:00:00][%csl LRa7,LRh6]} b5 {[%emt 0:00:30]} 28. Qxh6+ {[%emt 0:01:00]} Kg8 {[%emt 0:00:30]} 29. h4 {[%emt 0:00:30]} Rd7 {[%emt 0:03:30]} 30. h5 {[%emt 0:01:30]} Qh4 $1 {[%emt 0:01:30]} 31. a4 {[%emt 0:00:30]} gxh5 {[%emt 0:02:30]} 32. axb5 {[%emt 0:01:30]} axb5 {[%emt 0:00:30]} 33. g3 {[%emt 0:00:30]} Qe4 {[%emt 0:06:49][%csl LRc2,LRe5]} 34. Qg5+ {[%emt 0:05:53]} (34. Rxb5 $2 {gets mated.} Rd1+ 35. Kh2 Qh1#) 34... Kf8 {[%emt 0:00:28]} 35. Qxh5 {[%emt 0:04:15]} Qxc2 {[%emt 0:01:55]} 36. Ra1 {[%emt 0:00:02] White wants to mate with Qh8+.} (36. Rxb5 $2 {perishes.} Rd1+ 37. Kg2 Qc6+ 38. Qf3 Rg1+ 39. Kxg1 Qxf3 $19) 36... Qc6 $2 {[%emt 0:00:34][%mdl 8192] [#]} (36... Kg7 $11) 37. Ra8+ $3 $18 {[%emt 0:00:30][%mdl 512]} Kg7 {[%emt 0:00:30]} (37... Qxa8 38. Qh8+) 38. Qh8+ {[%emt 0:00:30]} Kg6 {[%emt 0:00:30]} 39. Qf6+ {[%emt 0:00:00] An entertaining game by Temizer.   Weighted Error Value: White=0.08 (flawless) /Black=0.23 (precise)} 1-0

[Event "TUR-ch U13-18 Open 2023"]
[Site "Antalya"]
[Date "2023.01.28"]
[Round "10"]
[White "Durucay, Uygar"]
[Black "Zerey, Demhat"]
[Result "1-0"]
[ECO "A46"]
[WhiteElo "1926"]
[BlackElo "1756"]
[Annotator "TA"]
[PlyCount "81"]
[EventDate "2023.01.17"]
[EventType "swiss"]
[EventCountry "TUR"]
[SourceTitle "playchess.com"]
[Source "ChessBase"]
[SourceQuality "1"]
[TimeControl "5400+30"]

{[%evp 9,81,13,18,0,0,-6,0,0,35,29,31,17,40,42,50,48,38,53,68,61,87,91,119,111,121,129,132,144,165,139,143,154,240,210,225,170,231,181,300,254,289,318,281,266,512,514,504,515,863,864,843,843,956,431,398,335,307,312,290,252,412,274,300,260,228,163,172,169,237,233,206,113,190,177]} 1. d4 {[%emt 0:01:00]} Nf6 {[%emt 0:03:00]} 2. Nf3 {[%emt 0:00:30]} e6 {[%emt 0:01:30]} 3. Bg5 {[%emt 0:00:30]} c5 {[%emt 0:00:30]} 4. e3 {[%emt 0:00:30]} cxd4 {[%emt 0:01:30]} 5. exd4 {[%emt 0:00:00]} Qb6 {[%emt 0:00:30]} 6. Qc1 {[%emt 0:00:00] A46: 1 d4 Nf6 2 Nf3 e6: Torre, London and Colle Systems.} Nc6 {[%emt 0:00:30]} 7. c3 {[%emt 0:00:30]} d5 {[%emt 0:02:30][%cal Oe6e5]} 8. Bd3 {[%emt 0:01:30] The position is equal.} Be7 {[%emt 0:04:30]} (8... h6 $5 {[%cal Rh6g5]} 9. Bf4 g5 $11) 9. O-O {[%emt 0:01:30]} Bd7 {[%emt 0:02:30] [#]} 10. Ne5 $146 {[%emt 0:03:30]} ({Predecessor:} 10. Nbd2 O-O 11. Ne5 Qc7 12. Ndf3 h6 13. Nxd7 Qxd7 14. Bf4 Rac8 15. Re1 Nb4 16. Bb1 {½-½ Vigneron,M-Zorn,J FRA AJEC/06IR corr 1991}) 10... h6 {[%emt 0:03:30]} 11. Be3 {[%emt 0:00:30]} Rc8 {[%emt 0:06:30]} 12. Qd2 {[%emt 0:13:30]} Na5 {[%emt 0:09:30]} 13. Qe2 {[%emt 0:03:30]} Nc6 {[%emt 0:15:30]} 14. a4 {[%emt 0:02:30]} h5 {[%emt 0:00:30]} 15. h3 {[%emt 0:05:30]} Bd6 {[%emt 0:10:30]} 16. Nd2 {[%emt 0:06:30]} a5 {[%emt 0:06:30]} 17. Ndf3 {[%emt 0:02:30]} Qc7 {[%emt 0:03:30][%cal Rc6e5]} 18. Bf4 {[%emt 0:00:30] White is much more active.} Bxe5 {[%emt 0:02:30]} 19. Nxe5 {[%emt 0:02:30]} Nxe5 {[%emt 0:05:22]} 20. Bxe5 {[%emt 0:00:00]} (20. dxe5 Bc6 $16) (20. Qxe5 Qxe5 21. Bxe5 (21. dxe5 Ne4 $14) 21... Ke7 $14) 20... Qc6 {[%emt 0:00:35]} (20... Qd8 $16 {was called for.} 21. f4 O-O) 21. Qf3 $18 {[%emt 0:00:00] And now Qg3 would win.} ({But not} 21. Bb5 $6 Qb6 $16) 21... Ke7 {[%emt 0:03:04]} 22. Rfe1 {[%emt 0:02:30]} Rhg8 {[%emt 0:02:59]} (22... Qb6 $142 23. Re2 h4 24. Bxf6+ gxf6) 23. Qe2 {[%emt 0:02:30]} Rce8 {[%emt 0:01:43]} (23... h4 $142 24. Qf3 Qb6) 24. b4 {[%emt 0:01:30]} Rc8 {[%emt 0:01:59]} 25. bxa5 {[%emt 0:01:30]} Qxc3 {[%emt 0:00:50]} 26. Rab1 {[%emt 0:00:30]} Bc6 {[%emt 0:02:18] [#]} (26... Rgd8 27. Rxb7 Qxa5) 27. a6 {[%emt 0:00:30]} bxa6 {[%emt 0:00:30]} 28. Bxa6 {[%emt 0:00:00] This pair of bishops is nice.} Bxa4 {[%emt 0:01:25]} (28... Bd7 $142 29. Bxc8 Rxc8) 29. Bxc8 {[%emt 0:00:00]} Rxc8 {[%emt 0:00:00]} 30. Qa6 {[%emt 0:00:30]} Bd7 {[%emt 0:01:19]} 31. Qd6+ {[%emt 0:01:30]} (31. Bd6+ $142 Kd8 32. Bc5 Rxc5 33. dxc5) 31... Ke8 {[%emt 0:00:00]} 32. Re3 {[%emt 0:01:30] [#] Bxf6 would kill now.} Qc6 {[%emt 0:01:21]} 33. Qb4 {[%emt 0:00:30] Strongly threatening Bxf6. Black is weak on the dark squares} Qc4 {[%emt 0:00:15]} 34. Qa3 {[%emt 0:00:30] Threatening mate with Bxf6.} h4 $2 {[%emt 0:00:41]} (34... Qa4 35. Qd6 Qc6 36. Qxc6 Bxc6) 35. Qa7 {[%emt 0:01:30]} Qa4 {[%emt 0:01:30]} 36. Qxa4 {[%emt 0:03:30]} Bxa4 {[%emt 0:00:30]} 37. Rb4 {[%emt 0:00:30]} Rc1+ {[%emt 0:00:50]} 38. Kh2 {[%emt 0:00:30]} Bc6 {[%emt 0:00:00]} (38... Rc4 {was necessary.} 39. Bd6 Kd7) 39. Rb8+ {[%emt 0:00:30]} Ke7 {[%emt 0:00:27]} 40. Rh8 {[%emt 0:00:00]} ({Don't take} 40. Rc8 Ne8 41. Ra3 Rc4) (40. Ra3 $18) 40... Rc4 {[%emt 0:03:10]} (40... Ne4 $16) 41. Rxh4 {[%emt 0:03:00] Weighted Error Value: White=0.42/Black=0.48} 1-0